[Event "106th British-ch Major 2019"]
[Site "Torquay"]
[Date "2019.07.27"]
[Round "1.20"]
[White "Forster, James Connor Christo"]
[Black "Menadue, Jeremy F S"]
[Result "1/2-1/2"]
[ECO "A55"]
[WhiteElo "1831"]
[BlackElo "2016"]
[Annotator "NA"]
[PlyCount "48"]
[EventDate "2019.07.27"]
[EventType "swiss"]
[EventCountry "GBR"]
[SourceTitle "playchess.com"]
[Source "ChessBase"]
[SourceQuality "1"]
[TimeControl "40/5400+30:1800+30"]

1. d4 {[%emt 0:00:54]} Nf6 {[%emt 0:00:49]} 2. c4 {[%emt 0:00:26]} d6 {[%emt 0:00:26]} 3. Nc3 {[%emt 0:00:55]} Nbd7 {[%emt 0:00:13]} 4. Nf3 {[%emt 0:04:27]} e5 {[%emt 0:00:34]} 5. e4 {[%emt 0:04:57]} Be7 {[%emt 0:00:59]} 6. Be2 {[%emt 0:02:56]} O-O {[%emt 0:00:42]} 7. O-O {[%emt 0:01:18]} c6 {[%emt 0:00:29]} 8. Qc2 {[%emt 0:05:32]} Qc7 {[%emt 0:05:08]} 9. Rd1 {[%emt 0:09:11]} a6 {[%emt 0:01:12]} 10. a4 {[%emt 0:08:09]} a5 {[%emt 0:00:33]} 11. Bg5 {[%emt 0:05:29]} Re8 {[%emt 0:02:00]} 12. Rac1 {[%emt 0:03:03]} Nf8 {[%emt 0:20:27]} 13. Bh4 {[%emt 0:05:08]} Ng6 {[%emt 0:08:14]} 14. Bg3 {[%emt 0:03:01]} Bg4 {[%emt 0:04:21]} 15. h3 {[%emt 0:09:07]} Bxf3 {[%emt 0:03:11]} 16. Bxf3 {[%emt 0:00:18]} Bf8 {[%emt 0:01:19]} 17. Rd2 {[%emt 0:06:39]} Qb6 {[%emt 0:05:38]} 18. Rcd1 {[%emt 0:01:12]} Rac8 {[%emt 0:10:12]} 19. Qb1 {[%emt 0:08:30]} Qb4 {[%emt 0:09:46]} 20. Qa2 {[%emt 0:02:57]} h5 {[%emt 0:10:38]} 21. Kh1 {[%emt 0:05:14]} h4 {[%emt 0:00:16]} 22. Bh2 {[%emt 0:00:06]} Qb6 {[%emt 0:05:28]} 23. Qb1 {[%emt 0:00:10]} Qb4 {[%emt 0:01:52]} 24. Qa2 {[%emt 0:00:05]} Qb6 {[%emt 0:01:38]} 1/2-1/2

[Event "106th British-ch Major 2019"]
[Site "Torquay"]
[Date "2019.07.27"]
[Round "1.21"]
[White "Akeya-Price, Robert"]
[Black "Forster, Matthew"]
[Result "1/2-1/2"]
[ECO "D02"]
[WhiteElo "1974"]
[BlackElo "1825"]
[Annotator "NA"]
[PlyCount "55"]
[EventDate "2019.07.27"]
[EventType "swiss"]
[EventCountry "GBR"]
[SourceTitle "playchess.com"]
[Source "ChessBase"]
[SourceQuality "1"]
[TimeControl "40/5400+30:1800+30"]

1. d4 {[%emt 0:00:00]} d5 {[%emt 0:00:00]} 2. Nf3 {[%emt 0:00:00]} Nf6 {[%emt 0:00:05]} 3. g3 {[%emt 0:00:09]} e6 {[%emt 0:01:11]} 4. Bg2 {[%emt 0:00:11]} c5 {[%emt 0:01:04]} 5. O-O {[%emt 0:00:20]} Nc6 {[%emt 0:00:16]} 6. Bg5 {[%emt 0:05:33]} Qb6 {[%emt 0:04:50]} 7. Bxf6 {[%emt 0:18:12]} gxf6 {[%emt 0:00:10]} 8. dxc5 {[%emt 0:04:53]} Qxb2 {[%emt 0:00:43]} 9. Nbd2 {[%emt 0:01:31]} Bxc5 {[%emt 0:00:58]} 10. c4 {[%emt 0:01:45]} dxc4 {[%emt 0:11:05]} 11. Nxc4 {[%emt 0:00:12]} Qb5 {[%emt 0:04:15]} 12. Nd6+ {[%emt 0:06:27]} Bxd6 {[%emt 0:00:12]} 13. Qxd6 {[%emt 0:00:07]} Ne5 {[%emt 0:09:19]} 14. Rfd1 {[%emt 0:07:00]} Qd7 {[%emt 0:09:43]} 15. Qa3 {[%emt 0:07:25]} Qe7 {[%emt 0:01:27]} 16. Qxe7+ {[%emt 0:00:31]} Kxe7 {[%emt 0:00:16]} 17. Nxe5 {[%emt 0:00:13]} fxe5 {[%emt 0:00:12]} 18. Rac1 {[%emt 0:00:13]} Rb8 {[%emt 0:04:46]} 19. Rc7+ {[%emt 0:05:12]} Kf6 {[%emt 0:01:18]} 20. Rd3 {[%emt 0:00:55]} Rf8 {[%emt 0:02:10]} 21. Rb3 {[%emt 0:00:56]} Kg6 {[%emt 0:03:10]} 22. Be4+ {[%emt 0:01:53]} f5 {[%emt 0:02:32]} 23. Bxb7 {[%emt 0:00:21]} Bxb7 {[%emt 0:02:24]} 24. Rbxb7 {[%emt 0:00:16]} Rxb7 {[%emt 0:00:17]} 25. Rxb7 {[%emt 0:00:02]} Rf7 {[%emt 0:00:18]} 26. Rxf7 {[%emt 0:04:05]} Kxf7 {[%emt 0:00:09]} 27. Kf1 {[%emt 0:00:31]} Kg6 {[%emt 0:01:27]} 28. e3 {[%emt 0:01:21]} 1/2-1/2

[Event "106th British-ch Major 2019"]
[Site "Torquay"]
[Date "2019.07.27"]
[Round "1.22"]
[White "Lim, Mark"]
[Black "Cusick, Peter"]
[Result "1/2-1/2"]
[ECO "A44"]
[WhiteElo "2265"]
[BlackElo "1971"]
[Annotator "NA"]
[PlyCount "103"]
[EventDate "2019.07.27"]
[EventType "swiss"]
[EventCountry "GBR"]
[SourceTitle "playchess.com"]
[Source "ChessBase"]
[SourceQuality "1"]
[TimeControl "40/5400+30:1800+30"]

1. d4 {[%emt 0:00:00]} c5 {[%emt 0:00:00]} 2. d5 {[%emt 0:00:41]} e5 {[%emt 0:00:01]} 3. e4 {[%emt 0:00:05]} d6 {[%emt 0:00:05]} 4. Nc3 {[%emt 0:00:03]} Be7 {[%emt 0:00:39]} 5. Nf3 {[%emt 0:00:41]} Nf6 {[%emt 0:00:30]} 6. Be2 {[%emt 0:06:02]} Nbd7 {[%emt 0:00:39]} 7. O-O {[%emt 0:01:45]} a6 {[%emt 0:00:48]} 8. a4 {[%emt 0:00:41]} Nf8 {[%emt 0:00:56]} 9. Nd2 {[%emt 0:02:05]} Ng6 {[%emt 0:00:19]} 10. Nc4 {[%emt 0:02:54]} O-O {[%emt 0:01:36]} 11. a5 {[%emt 0:03:25]} Nd7 {[%emt 0:01:13]} 12. Bg4 {[%emt 0:04:00]} b5 {[%emt 0:04:52]} 13. axb6 {[%emt 0:04:19]} Nxb6 {[%emt 0:02:06]} 14. Bxc8 {[%emt 0:05:53]} Nxc8 {[%emt 0:01:14]} 15. Qd3 {[%emt 0:08:22]} Bg5 {[%emt 0:01:47]} 16. Ne2 {[%emt 0:07:52]} Bxc1 {[%emt 0:01:12]} 17. Rfxc1 {[%emt 0:01:46]} Qg5 {[%emt 0:03:00]} 18. Qe3 {[%emt 0:04:05]} Qh4 {[%emt 0:06:03]} 19. Ng3 {[%emt 0:07:17]} Nf4 {[%emt 0:01:45]} 20. Ra4 {[%emt 0:09:16]} Qg4 {[%emt 0:02:04]} 21. Rca1 {[%emt 0:03:05]} h5 {[%emt 0:01:50]} 22. Qf3 {[%emt 0:03:10]} Qd7 {[%emt 0:09:12]} 23. Nxh5 {[%emt 0:03:01]} Ng6 {[%emt 0:01:56]} 24. Qf6 {[%emt 0:01:16]} gxf6 {[%emt 0:01:21]} 25. Nxf6+ {[%emt 0:00:06]} Kg7 {[%emt 0:01:53]} 26. Nxd7 {[%emt 0:00:07]} Rd8 {[%emt 0:00:57]} 27. Ndb6 {[%emt 0:01:39]} Nxb6 {[%emt 0:00:57]} 28. Nxb6 {[%emt 0:00:28]} Rab8 {[%emt 0:01:07]} 29. Rxa6 {[%emt 0:01:27]} Nf4 {[%emt 0:00:19]} 30. Ra8 {[%emt 0:03:39]} Ne2+ {[%emt 0:00:55]} 31. Kf1 {[%emt 0:00:39]} Nd4 {[%emt 0:00:41]} 32. c3 {[%emt 0:01:18]} Nb3 {[%emt 0:00:23]} 33. R1a4 {[%emt 0:05:07]} Nd2+ {[%emt 0:00:54]} 34. Ke2 {[%emt 0:00:52]} Nxe4 {[%emt 0:00:21]} 35. Rxe4 {[%emt 0:02:28]} Rxa8 {[%emt 0:00:07]} 36. Nxa8 {[%emt 0:00:15]} Rxa8 {[%emt 0:00:04]} 37. Kd3 {[%emt 0:00:40]} f5 {[%emt 0:00:26]} 38. Re2 {[%emt 0:02:40]} Ra4 {[%emt 0:00:22]} 39. f3 {[%emt 0:01:04]} Kf6 {[%emt 0:00:57]} 40. g3 {[%emt 0:01:27]} c4+ {[%emt 0:01:16]} 41. Ke3 {[%emt 0:31:32]} Ra1 {[%emt 0:31:41]} 42. f4 {[%emt 0:00:00]} Rd1 {[%emt 0:00:00]} 43. Rd2 {[%emt 0:00:00]} Re1+ {[%emt 0:00:00]} 44. Kf2 {[%emt 0:00:00]} Rh1 {[%emt 0:00:00]} 45. Kg2 {[%emt 0:00:00]} Re1 {[%emt 0:00:00]} 46. fxe5+ {[%emt 0:00:00]} Kxe5 {[%emt 0:00:00]} 47. h4 {[%emt 0:00:00]} f4 {[%emt 0:00:00]} 48. Kf2 {[%emt 0:00:00]} Rh1 {[%emt 0:00:00]} 49. Kg2 {[%emt 0:00:00]} Re1 {[%emt 0:00:00]} 50. Kf3 {[%emt 0:00:00]} Re3+ {[%emt 0:00:00]} 51. Kf2 {[%emt 0:00:00]} Rxg3 {[%emt 0:00:00]} 52. Rd4 {[%emt 0:00:00]} 1/2-1/2

[Event "106th British-ch Major 2019"]
[Site "Torquay"]
[Date "2019.07.27"]
[Round "1.23"]
[White "Young, Daniel J"]
[Black "Wilson, Matthew R"]
[Result "1/2-1/2"]
[ECO "C42"]
[WhiteElo "1971"]
[BlackElo "1817"]
[Annotator "NA"]
[PlyCount "85"]
[EventDate "2019.07.27"]
[EventType "swiss"]
[EventCountry "GBR"]
[SourceTitle "playchess.com"]
[Source "ChessBase"]
[SourceQuality "1"]
[TimeControl "40/5400+30:1800+30"]

1. e4 {[%emt 0:00:00]} e5 {[%emt 0:00:00]} 2. Nf3 {[%emt 0:00:00]} Nf6 {[%emt 0:00:00]} 3. Nxe5 {[%emt 0:00:00]} d6 {[%emt 0:00:07]} 4. Nf3 {[%emt 0:00:02]} Nxe4 {[%emt 0:00:06]} 5. Nc3 {[%emt 0:00:47]} Nxc3 {[%emt 0:00:07]} 6. dxc3 {[%emt 0:00:09]} Be7 {[%emt 0:00:28]} 7. Be3 {[%emt 0:00:09]} Nc6 {[%emt 0:01:27]} 8. Qd2 {[%emt 0:00:14]} Bf6 {[%emt 0:02:51]} 9. O-O-O {[%emt 0:02:29]} Be6 {[%emt 0:00:29]} 10. Kb1 {[%emt 0:02:38]} Qd7 {[%emt 0:01:01]} 11. h4 {[%emt 0:04:16]} O-O-O {[%emt 0:00:22]} 12. Bb5 {[%emt 0:00:48]} a6 {[%emt 0:04:32]} 13. Ba4 {[%emt 0:00:47]} b5 {[%emt 0:09:39]} 14. Bb3 {[%emt 0:00:23]} Bxb3 {[%emt 0:01:33]} 15. axb3 {[%emt 0:00:11]} Kb7 {[%emt 0:08:37]} 16. Ng5 {[%emt 0:05:45]} h6 {[%emt 0:07:32]} 17. Ne4 {[%emt 0:00:55]} Qe7 {[%emt 0:02:37]} 18. Qd5 {[%emt 0:22:55]} Rhe8 {[%emt 0:11:53]} 19. Nxf6 {[%emt 0:03:30]} Qxf6 {[%emt 0:02:30]} 20. Bd4 {[%emt 0:01:06]} Qe6 {[%emt 0:06:18]} 21. Bxg7 {[%emt 0:04:50]} Rg8 {[%emt 0:10:38]} 22. Qxe6 {[%emt 0:01:02]} fxe6 {[%emt 0:00:07]} 23. Bxh6 {[%emt 0:00:23]} Rxg2 {[%emt 0:00:17]} 24. Be3 {[%emt 0:02:46]} Ne5 {[%emt 0:06:22]} 25. Rdg1 {[%emt 0:11:03]} Rxg1+ {[%emt 0:05:39]} 26. Rxg1 {[%emt 0:00:00]} Rh8 {[%emt 0:00:15]} 27. Rh1 {[%emt 0:00:00]} Ng4 {[%emt 0:02:42]} 28. h5 {[%emt 0:04:21]} Nxe3 {[%emt 0:01:53]} 29. fxe3 {[%emt 0:00:07]} Kc6 {[%emt 0:02:24]} 30. Kc1 {[%emt 0:01:19]} Kd5 {[%emt 0:00:43]} 31. Kd2 {[%emt 0:04:20]} Ke4 {[%emt 0:01:11]} 32. Rh4+ {[%emt 0:13:09]} Kf5 {[%emt 0:03:44]} 33. Kd3 {[%emt 0:05:45]} e5 {[%emt 0:02:17]} 34. Rh1 {[%emt 0:05:07]} d5 {[%emt 0:04:02]} 35. b4 {[%emt 0:01:01]} Rh6 {[%emt 0:00:31]} 36. Rf1+ {[%emt 0:02:44]} Ke6 {[%emt 0:00:30]} 37. Rg1 {[%emt 0:01:03]} Rxh5 {[%emt 0:00:23]} 38. Rg6+ {[%emt 0:00:10]} Kd7 {[%emt 0:00:55]} 39. Rxa6 {[%emt 0:00:17]} Rh2 {[%emt 0:01:34]} 40. Rg6 {[%emt 0:01:44]} c6 {[%emt 0:00:43]} 41. Rg7+ {[%emt 0:06:14]} Kd6 {[%emt 0:00:53]} 42. Rg6+ {[%emt 0:00:10]} Kd7 {[%emt 0:00:06]} 43. Rg7+ {[%emt 0:00:06] e4+ Kxe4+} 1/2-1/2

[Event "106th British-ch Major 2019"]
[Site "Torquay"]
[Date "2019.07.27"]
[Round "1.24"]
[White "Merriman, James"]
[Black "Warren, Alex M"]
[Result "1/2-1/2"]
[ECO "E70"]
[WhiteElo "1808"]
[BlackElo "1967"]
[Annotator "NA"]
[PlyCount "58"]
[EventDate "2019.07.27"]
[EventType "swiss"]
[EventCountry "GBR"]
[SourceTitle "playchess.com"]
[Source "ChessBase"]
[SourceQuality "1"]
[TimeControl "40/5400+30:1800+30"]

1. d4 {[%emt 0:00:45]} Nf6 {[%emt 0:00:00]} 2. c4 {[%emt 0:00:10]} g6 {[%emt 0:00:00]} 3. Nc3 {[%emt 0:00:08]} Bg7 {[%emt 0:00:00]} 4. e4 {[%emt 0:00:16]} d6 {[%emt 0:00:00]} 5. Nge2 {[%emt 0:00:14]} O-O {[%emt 0:00:40]} 6. Ng3 {[%emt 0:00:04]} e5 {[%emt 0:00:19]} 7. d5 {[%emt 0:00:09]} c6 {[%emt 0:00:30]} 8. Be2 {[%emt 0:00:07]} a5 {[%emt 0:01:53]} 9. h4 {[%emt 0:00:35]} h5 {[%emt 0:00:45]} 10. Bg5 {[%emt 0:00:16]} Qb6 {[%emt 0:05:50]} 11. Na4 {[%emt 0:08:10]} Qc7 {[%emt 0:00:40]} 12. Rc1 {[%emt 0:05:32]} Na6 {[%emt 0:06:53]} 13. Be3 {[%emt 0:11:46]} Nd7 {[%emt 0:10:25]} 14. Nf1 {[%emt 0:15:06]} Ndc5 {[%emt 0:05:03]} 15. Nxc5 {[%emt 0:01:25]} Nxc5 {[%emt 0:00:15]} 16. g4 {[%emt 0:15:02]} hxg4 {[%emt 0:06:02]} 17. Bxc5 {[%emt 0:01:56]} dxc5 {[%emt 0:00:40]} 18. Bxg4 {[%emt 0:00:19]} cxd5 {[%emt 0:06:08]} 19. cxd5 {[%emt 0:00:52]} Qb6 {[%emt 0:04:44]} 20. b3 {[%emt 0:01:18]} Qb4+ {[%emt 0:07:12]} 21. Nd2 {[%emt 0:00:37]} Bh6 {[%emt 0:00:39]} 22. Bf3 {[%emt 0:00:49]} a4 {[%emt 0:07:09]} 23. h5 {[%emt 0:05:50]} axb3 {[%emt 0:03:41]} 24. axb3 {[%emt 0:01:17]} Kg7 {[%emt 0:06:32]} 25. Rc4 {[%emt 0:07:35]} Qxd2+ {[%emt 0:10:28]} 26. Qxd2 {[%emt 0:00:15]} Bxd2+ {[%emt 0:00:02]} 27. Kxd2 {[%emt 0:00:11]} b6 {[%emt 0:00:45]} 28. b4 {[%emt 0:04:09]} Ra4 {[%emt 0:02:29]} 29. Rb1 {[%emt 0:02:11]} Ba6 {[%emt 0:06:03]} 1/2-1/2

[Event "106th British-ch Major 2019"]
[Site "Torquay"]
[Date "2019.07.27"]
[Round "1.25"]
[White "Mueller, Jens"]
[Black "Howell, Oliver W"]
[Result "1-0"]
[ECO "A45"]
[WhiteElo "1965"]
[BlackElo "1797"]
[Annotator "NA"]
[PlyCount "105"]
[EventDate "2019.07.27"]
[EventType "swiss"]
[EventCountry "GBR"]
[SourceTitle "playchess.com"]
[Source "ChessBase"]
[SourceQuality "1"]
[TimeControl "40/5400+30:1800+30"]

1. d4 {[%emt 0:00:00]} Nf6 {[%emt 0:00:00]} 2. Bf4 {[%emt 0:00:00]} c5 {[%emt 0:00:17]} 3. e3 {[%emt 0:02:03]} Qb6 {[%emt 0:00:43]} 4. Na3 {[%emt 0:02:22]} cxd4 {[%emt 0:06:39]} 5. exd4 {[%emt 0:03:58]} Nc6 {[%emt 0:02:25]} 6. Nf3 {[%emt 0:06:41]} d6 {[%emt 0:01:58]} 7. Nc4 {[%emt 0:01:48]} Qc7 {[%emt 0:01:24]} 8. c3 {[%emt 0:01:00]} g6 {[%emt 0:01:16]} 9. Bd3 {[%emt 0:04:38]} Bg7 {[%emt 0:01:39]} 10. Qd2 {[%emt 0:02:29]} O-O {[%emt 0:01:55]} 11. O-O {[%emt 0:17:15]} b5 {[%emt 0:11:46]} 12. Na3 {[%emt 0:03:00]} a6 {[%emt 0:12:02]} 13. Bh6 {[%emt 0:11:14]} Bg4 {[%emt 0:14:49]} 14. Bxg7 {[%emt 0:00:49]} Kxg7 {[%emt 0:01:16]} 15. Ng5 {[%emt 0:04:26]} Rab8 {[%emt 0:05:11]} 16. f3 {[%emt 0:00:20]} Bc8 {[%emt 0:02:50]} 17. Nc2 {[%emt 0:03:44]} Na5 {[%emt 0:05:08]} 18. Ne4 {[%emt 0:02:49]} Nxe4 {[%emt 0:01:32]} 19. fxe4 {[%emt 0:00:08]} Nc4 {[%emt 0:05:01]} 20. Bxc4 {[%emt 0:01:53]} bxc4 {[%emt 0:03:14]} 21. Ne3 {[%emt 0:00:21]} Qb7 {[%emt 0:05:36]} 22. Nxc4 {[%emt 0:09:36]} Qxe4 {[%emt 0:00:51]} 23. Rae1 {[%emt 0:00:38]} Qb7 {[%emt 0:00:31]} 24. b3 {[%emt 0:01:58]} Be6 {[%emt 0:02:31]} 25. Nb2 {[%emt 0:05:39]} a5 {[%emt 0:04:11]} 26. c4 {[%emt 0:00:26]} d5 {[%emt 0:01:54]} 27. c5 {[%emt 0:00:09]} Qb4 {[%emt 0:00:37]} 28. Qf2 {[%emt 0:01:18]} Qa3 {[%emt 0:02:23]} 29. Na4 {[%emt 0:01:04]} Qb4 {[%emt 0:01:12]} 30. Nb6 {[%emt 0:00:26]} Rxb6 {[%emt 0:02:36]} 31. cxb6 {[%emt 0:00:06]} Qxb6 {[%emt 0:00:06]} 32. Qf4 {[%emt 0:00:23]} Ra8 {[%emt 0:01:11]} 33. Qe5+ {[%emt 0:00:20]} Kg8 {[%emt 0:00:25]} 34. h4 {[%emt 0:00:36]} h5 {[%emt 0:00:30]} 35. a3 {[%emt 0:04:14]} Qxb3 {[%emt 0:00:53]} 36. Rf3 {[%emt 0:02:31]} Qb7 {[%emt 0:00:49]} 37. Rc1 {[%emt 0:00:44]} Rc8 {[%emt 0:00:20]} 38. Rfc3 {[%emt 0:00:17]} Rxc3 {[%emt 0:00:23]} 39. Rxc3 {[%emt 0:00:07]} Qb1+ {[%emt 0:00:47]} 40. Kh2 {[%emt 0:00:05]} Qb2 {[%emt 0:00:21]} 41. Qe3 {[%emt 0:34:53]} a4 {[%emt 0:07:06]} 42. Rc7 {[%emt 0:00:00]} Qb6 {[%emt 0:01:00]} 43. Qc3 {[%emt 0:00:00]} Qd6+ {[%emt 0:01:17]} 44. Qg3 {[%emt 0:00:00]} Qd8 {[%emt 0:10:42]} 45. Rb7 {[%emt 0:00:00]} Kh7 {[%emt 0:04:24]} 46. Qe5 {[%emt 0:00:00]} Kg8 {[%emt 0:05:24]} 47. Rb8 {[%emt 0:00:00]} Bc8 {[%emt 0:00:10]} 48. Ra8 {[%emt 0:00:00]} Qd7 {[%emt 0:00:23]} 49. Qb8 {[%emt 0:00:00]} Kg7 {[%emt 0:01:17]} 50. Qxc8 {[%emt 0:00:00]} Qd6+ {[%emt 0:00:15]} 51. g3 {[%emt 0:00:00]} g5 {[%emt 0:00:25]} 52. Qh8+ {[%emt 0:00:00]} Kg6 {[%emt 0:00:01]} 53. Rg8+ {[%emt 0:00:00]} 1-0

[Event "106th British-ch Major 2019"]
[Site "Torquay"]
[Date "2019.07.27"]
[Round "1.26"]
[White "Gray, Edward"]
[Black "Rushbrooke, Remy"]
[Result "0-1"]
[ECO "C42"]
[WhiteElo "1757"]
[BlackElo "1963"]
[Annotator "NA"]
[PlyCount "60"]
[EventDate "2019.07.27"]
[EventType "swiss"]
[EventCountry "GBR"]
[SourceTitle "playchess.com"]
[Source "ChessBase"]
[SourceQuality "1"]
[TimeControl "40/5400+30:1800+30"]

1. e4 {[%emt 0:00:00]} e5 {[%emt 0:00:00]} 2. Nf3 {[%emt 0:00:00]} Nf6 {[%emt 0:00:00]} 3. Nxe5 {[%emt 0:00:09]} d6 {[%emt 0:00:00]} 4. Nf3 {[%emt 0:00:13]} Nxe4 {[%emt 0:00:01]} 5. Bd3 {[%emt 0:00:21]} Nf6 {[%emt 0:02:08]} 6. O-O {[%emt 0:01:31]} Be7 {[%emt 0:00:07]} 7. c3 {[%emt 0:00:27]} O-O {[%emt 0:00:37]} 8. Bc2 {[%emt 0:00:24]} d5 {[%emt 0:01:13]} 9. d4 {[%emt 0:00:49]} Bg4 {[%emt 0:00:31]} 10. h3 {[%emt 0:00:54]} Bh5 {[%emt 0:00:03]} 11. Re1 {[%emt 0:01:07]} Nbd7 {[%emt 0:02:05]} 12. Nbd2 {[%emt 0:01:48]} Bd6 {[%emt 0:01:41]} 13. Nf1 {[%emt 0:01:48]} Re8 {[%emt 0:01:13]} 14. Ne3 {[%emt 0:01:20]} c6 {[%emt 0:05:21]} 15. g4 {[%emt 0:10:57]} Bg6 {[%emt 0:00:12]} 16. Nf5 {[%emt 0:00:22]} Bc7 {[%emt 0:02:36]} 17. N3h4 {[%emt 0:06:50]} Ne4 {[%emt 0:03:28]} 18. Bxe4 {[%emt 0:03:24]} dxe4 {[%emt 0:00:08]} 19. Qc2 {[%emt 0:01:43]} e3 {[%emt 0:04:05]} 20. Nxg6 {[%emt 0:03:25]} exf2+ {[%emt 0:01:58]} 21. Qxf2 {[%emt 0:00:26]} Rxe1+ {[%emt 0:01:12]} 22. Qxe1 {[%emt 0:00:04]} hxg6 {[%emt 0:04:09]} 23. Ne3 {[%emt 0:11:49]} Nf6 {[%emt 0:00:43]} 24. Ng2 {[%emt 0:01:10]} Qd5 {[%emt 0:01:28]} 25. Bf4 {[%emt 0:03:45]} Re8 {[%emt 0:02:25]} 26. Qf2 {[%emt 0:02:15]} Bxf4 {[%emt 0:04:29]} 27. Nxf4 {[%emt 0:00:51]} Qe4 {[%emt 0:00:55]} 28. Rf1 {[%emt 0:02:15]} g5 {[%emt 0:04:51]} 29. Nh5 {[%emt 0:02:22]} Qd3 {[%emt 0:00:46]} 30. Nxg7 Re2 {[%emt 0:00:29]} 0-1

[Event "106th British-ch Major 2019"]
[Site "Torquay"]
[Date "2019.07.27"]
[Round "1.27"]
[White "Ashworth, Michael"]
[Black "Gogia, Armaan"]
[Result "1/2-1/2"]
[ECO "A65"]
[WhiteElo "1957"]
[BlackElo "1754"]
[Annotator "NA"]
[PlyCount "68"]
[EventDate "2019.07.27"]
[EventType "swiss"]
[EventCountry "GBR"]
[SourceTitle "playchess.com"]
[Source "ChessBase"]
[SourceQuality "1"]
[TimeControl "40/5400+30:1800+30"]

1. d4 {[%emt 0:00:00]} Nf6 {[%emt 0:00:00]} 2. c4 {[%emt 0:00:00]} g6 {[%emt 0:00:00]} 3. Nc3 {[%emt 0:00:00]} Bg7 {[%emt 0:00:00]} 4. e4 {[%emt 0:00:20]} d6 {[%emt 0:00:00]} 5. f3 {[%emt 0:00:31]} O-O {[%emt 0:00:09]} 6. Be3 {[%emt 0:00:08]} c5 {[%emt 0:00:05]} 7. Nge2 {[%emt 0:00:26]} Nc6 {[%emt 0:01:08]} 8. d5 {[%emt 0:00:22]} Ne5 {[%emt 0:00:36]} 9. Ng3 {[%emt 0:00:20]} e6 {[%emt 0:01:34]} 10. Be2 {[%emt 0:00:28]} exd5 {[%emt 0:00:19]} 11. cxd5 {[%emt 0:00:08]} a6 {[%emt 0:01:25]} 12. a4 {[%emt 0:00:20]} Re8 {[%emt 0:03:52]} 13. O-O {[%emt 0:03:29]} h5 {[%emt 0:08:03]} 14. Qd2 {[%emt 0:09:18]} Bd7 {[%emt 0:14:37]} 15. h3 {[%emt 0:13:42]} b5 {[%emt 0:05:22]} 16. axb5 {[%emt 0:05:37]} axb5 {[%emt 0:00:05]} 17. Rxa8 {[%emt 0:00:30]} Qxa8 {[%emt 0:00:06]} 18. Nxb5 {[%emt 0:01:25]} Bxb5 {[%emt 0:00:35]} 19. Bxb5 {[%emt 0:00:08]} Rb8 {[%emt 0:00:08]} 20. Be2 {[%emt 0:05:32]} Qa2 {[%emt 0:01:23]} 21. b4 {[%emt 0:04:34]} Qa3 {[%emt 0:09:41]} 22. bxc5 {[%emt 0:09:02]} h4 {[%emt 0:00:08]} 23. f4 {[%emt 0:05:14]} hxg3 {[%emt 0:16:33]} 24. fxe5 {[%emt 0:00:07]} Nxe4 {[%emt 0:01:56]} 25. Qc1 {[%emt 0:02:53]} Qxc1 {[%emt 0:11:20]} 26. Rxc1 {[%emt 0:00:17]} dxc5 {[%emt 0:00:14]} 27. Bf3 {[%emt 0:25:49]} Nf2 {[%emt 0:01:59]} 28. Bxf2 {[%emt 0:06:22]} gxf2+ {[%emt 0:00:03]} 29. Kxf2 {[%emt 0:00:07]} Bxe5 {[%emt 0:00:11]} 30. Ke2 {[%emt 0:00:23]} Bd4 {[%emt 0:01:53]} 31. Kd3 {[%emt 0:00:43]} Rb3+ {[%emt 0:00:52]} 32. Kc4 {[%emt 0:00:25]} Rb4+ {[%emt 0:00:10]} 33. Kd3 {[%emt 0:00:06]} Rb3+ {[%emt 0:00:04]} 34. Kc4 {[%emt 0:00:45]} Rb4+ {[%emt 0:00:05]} 1/2-1/2

[Event "106th British-ch Major 2019"]
[Site "Torquay"]
[Date "2019.07.27"]
[Round "1.28"]
[White "Sanitt, Ethan"]
[Black "Chapman, Matt"]
[Result "1/2-1/2"]
[ECO "A11"]
[WhiteElo "1752"]
[BlackElo "1957"]
[Annotator "NA"]
[PlyCount "100"]
[EventDate "2019.07.27"]
[EventType "swiss"]
[EventCountry "GBR"]
[SourceTitle "playchess.com"]
[Source "ChessBase"]
[SourceQuality "1"]
[TimeControl "40/5400+30:1800+30"]

1. c4 {[%emt 0:00:09]} c6 {[%emt 0:00:00]} 2. g3 {[%emt 0:00:07]} d5 {[%emt 0:00:00]} 3. Nf3 {[%emt 0:00:15]} Nf6 {[%emt 0:00:02]} 4. Bg2 {[%emt 0:00:11]} Bf5 {[%emt 0:00:38]} 5. O-O {[%emt 0:02:17]} e6 {[%emt 0:01:01]} 6. d3 {[%emt 0:01:11]} dxc4 {[%emt 0:02:31]} 7. dxc4 {[%emt 0:00:30]} Qxd1 {[%emt 0:00:14]} 8. Rxd1 {[%emt 0:00:12]} Nbd7 {[%emt 0:04:53]} 9. Nc3 {[%emt 0:03:19]} Bc5 {[%emt 0:11:31]} 10. h3 {[%emt 0:42:59]} e5 {[%emt 0:06:37]} 11. Ng5 {[%emt 0:12:58]} Rd8 {[%emt 0:24:08]} 12. Nge4 {[%emt 0:01:19]} Nxe4 {[%emt 0:00:55]} 13. Nxe4 {[%emt 0:00:16]} Bxe4 {[%emt 0:00:29]} 14. Bxe4 {[%emt 0:00:32]} Ke7 {[%emt 0:08:03]} 15. Bd2 {[%emt 0:06:49]} Nf6 {[%emt 0:03:57]} 16. Bg2 {[%emt 0:07:09]} Rd7 {[%emt 0:03:22]} 17. Bc3 {[%emt 0:01:23]} Bd4 {[%emt 0:03:17]} 18. Bb4+ {[%emt 0:03:35]} Kd8 {[%emt 0:09:46]} 19. Ba3 {[%emt 0:00:27]} a5 {[%emt 0:02:05]} 20. e3 {[%emt 0:01:18]} Ba7 {[%emt 0:00:19]} 21. Bd6 {[%emt 0:04:06]} Re8 {[%emt 0:02:55]} 22. h4 {[%emt 0:00:59]} h5 {[%emt 0:01:38]} 23. c5 {[%emt 0:01:51]} Ng4 {[%emt 0:00:40]} 24. a3 {[%emt 0:02:31]} Kc8 {[%emt 0:02:34]} 25. b4 {[%emt 0:00:41]} Red8 {[%emt 0:01:47]} 26. Rd3 {[%emt 0:01:47]} Bb8 {[%emt 0:00:56]} 27. Rad1 {[%emt 0:01:31]} Bxd6 {[%emt 0:01:24]} 28. cxd6 {[%emt 0:00:02]} axb4 {[%emt 0:01:12]} 29. axb4 {[%emt 0:01:31]} f5 {[%emt 0:01:20]} 30. Bf1 {[%emt 0:02:08]} Nf6 {[%emt 0:01:45]} 31. b5 {[%emt 0:00:42]} Ne8 {[%emt 0:01:03]} 32. bxc6 {[%emt 0:00:15]} bxc6 {[%emt 0:00:06]} 33. Ra3 {[%emt 0:00:48]} Rxd6 {[%emt 0:00:51]} 34. Rxd6 {[%emt 0:00:37]} Rxd6 {[%emt 0:01:09]} 35. Bc4 {[%emt 0:00:17]} Nc7 {[%emt 0:02:58]} 36. Ra5 {[%emt 0:00:26]} Nd5 {[%emt 0:00:41]} 37. Ra7 {[%emt 0:00:18]} Rd7 {[%emt 0:00:55]} 38. Ra8+ {[%emt 0:00:33]} Kc7 {[%emt 0:00:07]} 39. Rf8 {[%emt 0:00:15]} g6 {[%emt 0:00:40]} 40. Kg2 {[%emt 0:01:05]} e4 {[%emt 0:00:51]} 41. Kf1 {[%emt 0:30:30]} Kd6 {[%emt 0:30:35]} 42. Rg8 {[%emt 0:00:32]} Ne7 {[%emt 0:00:00]} 43. Ra8 {[%emt 0:00:00]} Kc5 {[%emt 0:00:00]} 44. Bf7 {[%emt 0:00:00]} Kb4 {[%emt 0:00:00]} 45. Rb8+ {[%emt 0:00:00]} Kc3 {[%emt 0:00:00]} 46. Rb6 {[%emt 0:00:00]} Rc7 {[%emt 0:00:00]} 47. Ke2 {[%emt 0:00:00]} Nc8 {[%emt 0:00:00]} 48. Ra6 {[%emt 0:00:00]} Ne7 {[%emt 0:00:00]} 49. Rb6 {[%emt 0:00:00]} Nc8 {[%emt 0:00:00]} 50. Ra6 {[%emt 0:00:00]} Ne7 {[%emt 0:00:00]} 1/2-1/2